fUSD/lending_fUSD_20251212
["ID","MTS","AMOUNT","RATE_DAILY","PERIOD"]
[398302431,1765515042715,-1000.0,0.00019348,2]
[398302432,1765515042725,-1000.0,0.00019348,2]
[398302434,1765515042735,-1000.0,0.00019348,2]
[398302436,1765515042744,-1000.0,0.00019348,2]
[398302437,1765515042754,-1000.0,0.00019348,2]
[398302439,1765515042763,-1000.0,0.00019348,2]
[398302441,1765515042772,-1004.6753738,0.00019348,2]
[398302442,1765515042781,-299.21004831,0.00019348,2]
[398302443,1765515042791,-1000.0,0.00019348,2]
[398302444,1765515042800,-1000.0,0.00019348,2]
[398302445,1765515042809,-500.0,0.00019348,2]
[398302446,1765515042818,-1194.84394507,0.00019348,2]
[398302447,1765515042827,-30279.59157955,0.00019348,2]
[398302448,1765515042836,-151.0,0.00019348,2]
[398302449,1765515042846,-151.0,0.00019348,2]
[398302451,1765515042855,-151.0,0.00019348,2]
[398302453,1765515042864,-151.0,0.00019348,2]
[398302454,1765515042873,-151.0,0.00019348,2]
[398302456,1765515042883,-151.0,0.00019348,2]
[398302458,1765515042892,-151.0,0.00019348,2]
[398302460,1765515042901,-151.0,0.00019348,2]
[398302461,1765515042911,-152.733017,0.00019348,2]
[398302462,1765515042920,-152.733017,0.00019348,2]
[398302463,1765515042930,-152.733017,0.00019348,2]
[398302464,1765515042939,-152.733017,0.00019348,2]
[398302465,1765515042948,-151.0,0.00019348,2]
[398302466,1765515042958,-151.0,0.00019348,2]
[398302467,1765515042967,-151.0,0.00019348,2]
[398302468,1765515042976,-151.0,0.00019348,2]
[398302469,1765515042985,-151.000014,0.00019348,2]
[398302470,1765515042994,-569.317374,0.00019348,2]
[398302471,1765515043003,-151.0,0.00019348,2]
[398302472,1765515043013,-151.0,0.00019348,2]
[398302473,1765515043022,-151.0,0.00019348,2]
[398302474,1765515043032,-663.404819,0.00019348,2]
[398302475,1765515043042,-663.404819,0.00019348,2]
[398302476,1765515043053,-663.404819,0.00019348,2]
[398302477,1765515043062,-663.404819,0.00019348,2]
[398302478,1765515043072,-205.713957,0.00019348,2]
[398302479,1765515043081,-205.713957,0.00019348,2]
[398302480,1765515043091,-3651.519771,0.00019348,2]
[398302481,1765515043101,-205.713957,0.00019348,2]
[398302482,1765515043110,-3651.519771,0.00019348,2]
[398302483,1765515043120,-205.713957,0.00019348,2]
[398302484,1765515043130,-3651.519771,0.00019348,2]
[398302485,1765515043140,-3651.519771,0.00019348,2]
[398302486,1765515043149,-152.093721,0.00019348,2]
[398302487,1765515043159,-151.0,0.00019348,2]
[398302488,1765515043169,-151.0,0.00019348,2]
[398302489,1765515043178,-151.0,0.00019348,2]
[398302490,1765515043188,-563.76,0.00019348,2]
[398302491,1765515043198,-855.91,0.00019383,2]
[398302492,1765515043207,-1033.84873776,0.000194,14]
[398302493,1765515043216,-151.0,0.000194,2]
[398302494,1765515043225,-414.90866,0.000194,2]
[398302495,1765515043234,-151.0,0.000194,2]
[398302496,1765515043243,-414.90866,0.000194,2]
[398302497,1765515043253,-414.90866,0.000194,2]
[398302498,1765515043262,-414.90866,0.000194,2]
[398302499,1765515043271,-151.0,0.000194,2]
[398302500,1765515043281,-151.0,0.000194,2]
[398302501,1765515043290,-151.0,0.000194,2]
[398302502,1765515043299,-159.123004,0.000194,2]
[398302503,1765515043309,-487.1147391,0.00019452,2]
[398302504,1765515043318,-172.09932027,0.00019485,2]
[398302505,1765515043328,-219.15441872,0.00019485,2]
[398302506,1765515043338,-1509.0,0.00019485,2]
[398302507,1765515043348,-448.60158819,0.00019485,2]
[398302515,1765515043546,-398.522162,0.000194,2]
[398302516,1765515043555,-51.39841181,0.00019485,2]
[398302517,1765515043564,-184.20290915,0.000196,7]
[398302518,1765515043574,-1509.0,0.00019622,2]
[398302519,1765515043584,-500.0,0.00019622,2]
[398302520,1765515043593,-563.76,0.00019622,2]
[398302521,1765515043603,-605.92,0.00019657,2]
[398302522,1765515043612,-500.0,0.00019677,2]
[398302523,1765515043621,-1000.0,0.00019697,2]
[398302524,1765515043631,-156.587,0.00019726,2]
[398302525,1765515043640,-420.0,0.00019746,2]
[398302526,1765515043650,-1509.0,0.00019759,2]
[398302527,1765515043663,-500.0,0.00019759,2]
[398302528,1765515043672,-151.0,0.00019801,2]
[398302529,1765515043682,-151.0,0.00019801,2]
[398302530,1765515043692,-607.13,0.00019829,2]
[398302531,1765515043704,-151.0,0.00019891,2]
[398302532,1765515043713,-151.0,0.00019891,2]
[398302533,1765515043722,-200.887746,0.00019891,2]
[398302534,1765515043733,-152.733017,0.00019891,2]
[398302535,1765515043742,-152.733017,0.00019891,2]
[398302536,1765515043754,-152.733017,0.00019891,2]
[398302537,1765515043763,-152.733017,0.00019891,2]
[398302538,1765515043773,-1000.0,0.00019894,2]
[398302539,1765515043783,-150.0,0.00019894,2]
[398302540,1765515043792,-1000.0,0.00019895,2]
[398302541,1765515043806,-150.0,0.00019895,2]
[398302542,1765515043815,-1500.0,0.00019896,2]
[398302543,1765515043824,-1509.0,0.00019896,2]
[398302544,1765515043834,-418.66815942,0.00019896,2]
[398302545,1765515043843,-1003.02463452,0.00019896,2]
[398302546,1765515043853,-1446.03126593,0.00019896,2]
[398302547,1765515043862,-1500.0,0.00019896,2]
[398302548,1765515043872,-1353.71986689,0.00019896,2]
[398302549,1765515044506,-146.28013311,0.00019896,2]
[398302550,1765515044516,-1500.0,0.00019896,2]
[398302551,1765515044525,-1500.0,0.00019896,2]
[398302552,1765515044535,-1500.0,0.00019896,2]
[398302553,1765515044544,-1500.0,0.00019896,2]
[398302554,1765515044554,-500.0,0.00019896,2]
[398302555,1765515044563,-563.76,0.00019896,2]
[398302556,1765515044572,-1000.0,0.00019898,2]
[398302557,1765515044581,-1000.0,0.000199,2]
[398302558,1765515044591,-1000.0,0.00019901,2]
[398302559,1765515044600,-150.0,0.00019902,2]
[398302560,1765515044609,-1000.0,0.00019903,2]
[398302561,1765515044618,-150.0,0.00019904,2]
[398302562,1765515044627,-1000.0,0.00019905,2]
[398302563,1765515044636,-1000.0,0.00019905,2]
[398302564,1765515044646,-150.0,0.00019906,2]
[398302565,1765515044658,-1000.0,0.0001991,2]
[398302566,1765515044667,-1000.0,0.00019912,2]
[398302567,1765515044676,-1000.0,0.00019912,2]
[398302568,1765515044686,-1000.0,0.00019918,2]
[398302569,1765515044696,-1000.0,0.00019919,2]
[398302570,1765515044705,-150.0,0.00019921,2]
[398302571,1765515044715,-150.0,0.00019925,2]
[398302572,1765515044724,-1000.0,0.00019927,2]
[398302573,1765515044735,-150.0,0.00019932,2]
[398302574,1765515044744,-1000.0,0.00019934,2]
[398302575,1765515044753,-151.0,0.00019934,2]
[398302576,1765515044762,-151.0,0.00019934,2]
[398302577,1765515044771,-1000.0,0.00019935,2]
[398302578,1765515044780,-1000.0,0.00019935,2]
[398302579,1765515044790,-1000.0,0.00019936,2]
[398302580,1765515044799,-205.713957,0.00019936,2]
[398302581,1765515044808,-205.713957,0.00019936,2]
[398302582,1765515044817,-3651.519771,0.00019936,2]
[398302583,1765515044828,-205.713957,0.00019936,2]
[398302584,1765515044837,-3651.519771,0.00019936,2]
[398302585,1765515044846,-205.713957,0.00019936,2]
[398302586,1765515044856,-3651.519771,0.00019936,2]
[398302587,1765515044865,-3651.519771,0.00019936,2]
[398302588,1765515044873,-387.48,0.00019936,2]
[398302589,1765515044882,-1000.0,0.00019941,2]
[398302590,1765515044892,-150.0,0.00019944,2]
[398302591,1765515044907,-513.92,0.00019945,2]
[398302592,1765515044917,-1000.0,0.00019945,2]
[398302593,1765515044925,-150.0,0.00019945,2]
[398302594,1765515044935,-1000.0,0.00019946,2]
[398302595,1765515044944,-500.0,0.00019946,2]
[398302596,1765515044953,-172.562361,0.00019946,2]
[398302597,1765515044962,-151.0,0.00019946,2]
[398302598,1765515044971,-213.558843,0.00019946,2]
[398302599,1765515044980,-663.404819,0.00019946,2]
[398302600,1765515044989,-663.404819,0.00019946,2]
[398302601,1765515044998,-500.0,0.00019946,2]
[398302602,1765515045008,-663.404819,0.00019946,2]
[398302603,1765515045017,-663.404819,0.00019946,2]
[398302604,1765515045027,-500.0,0.00019946,2]
[398302605,1765515045036,-500.0,0.00019946,2]
[398302606,1765515045045,-500.0,0.00019946,2]
[398302607,1765515045054,-500.0,0.00019946,2]
[398302608,1765515045063,-500.0,0.00019946,2]
[398302609,1765515045072,-500.0,0.00019946,2]
[398302610,1765515045081,-500.0,0.00019946,2]
[398302611,1765515045091,-500.0,0.00019946,2]
[398302612,1765515045100,-1000.0,0.00019947,2]
[398302613,1765515045110,-1000.0,0.00019947,2]
[398302614,1765515045119,-1000.0,0.00019947,2]
[398302615,1765515045129,-1000.0,0.00019948,2]
[398302616,1765515045139,-150.0,0.00019949,2]
[398302617,1765515045149,-1000.0,0.00019949,2]
[398302618,1765515045158,-1000.0,0.00019951,2]
[398302619,1765515045167,-1000.0,0.00019951,2]
[398302620,1765515045176,-155.857027,0.00019951,2]
[398302621,1765515045185,-151.0,0.00019951,2]
[398302622,1765515045195,-398.522162,0.00019951,2]
[398302623,1765515045204,-985.0,0.00019952,2]
[398302624,1765515045213,-1000.0,0.00019952,2]
[398302625,1765515045222,-1000.0,0.00019953,2]
[398302626,1765515045231,-1000.0,0.00019955,2]
[398302627,1765515045241,-1000.0,0.00019955,2]
[398302628,1765515045251,-151.0,0.00019955,2]
[398302629,1765515045260,-150.0,0.00019956,2]
[398302630,1765515045270,-1000.0,0.00019959,2]
[398302631,1765515045279,-150.0,0.00019962,2]
[398302632,1765515045288,-150.0,0.00019962,2]
[398302633,1765515045297,-151.0,0.00019965,2]
[398302634,1765515045307,-150.0,0.00019966,2]
[398302635,1765515045316,-1000.0,0.0001997,2]
[398302636,1765515045325,-500.0,0.0001997,2]
[398302637,1765515045335,-1000.0,0.0001997,2]
[398302638,1765515045344,-1000.0,0.0001997,2]
[398302639,1765515045354,-155.751472,0.0001997,2]
[398302640,1765515045363,-151.0,0.0001997,2]
[398302641,1765515045372,-151.0,0.0001997,2]
[398302642,1765515045382,-160.590529,0.0001997,2]
[398302643,1765515045391,-414.90866,0.0001997,2]
[398302644,1765515045401,-151.0,0.0001997,2]
[398302645,1765515045411,-414.90866,0.0001997,2]
[398302646,1765515045421,-414.90866,0.0001997,2]
[398302647,1765515045430,-414.90866,0.0001997,2]
[398302648,1765515045439,-150.0,0.0001997,2]
[398302649,1765515045449,-1000.0,0.00019972,2]
[398302650,1765515045458,-150.0,0.00019973,2]
[398302651,1765515045468,-1000.0,0.00019977,2]
[398302652,1765515045478,-1000.0,0.00019978,2]
[398302653,1765515045487,-150.0,0.00019978,2]
[398302654,1765515045496,-150.0,0.0001998,2]
[398302655,1765515045506,-1000.0,0.00019981,2]
[398302656,1765515045515,-150.0,0.00019985,2]
[398302657,1765515045529,-150.0,0.00019986,2]
[398302658,1765515045538,-1146.0607587,0.00019988,2]
[398302659,1765515045547,-1000.0,0.0001999,2]
[398302660,1765515045556,-1000.0,0.00019992,2]
[398302661,1765515045565,-150.0,0.00019994,2]
[398302662,1765515045574,-150.0,0.00019997,2]
[398302663,1765515045583,-150.0,0.00019997,2]
[398302664,1765515045592,-1000.0,0.00019997,2]
[398302665,1765515045601,-1000.0,0.00019998,2]
[398302666,1765515045611,-277.31951163,0.00019999,2]
[398302667,1765515045620,-303.16,0.00019999,2]
[398302668,1765515045628,-150.0,0.00019999,2]
[398302669,1765515045637,-1004.82,0.0002,2]
[398302670,1765515045647,-1526.44139135,0.0002,2]
[398302671,1765515045671,-1458.85915151,0.0002,5]
[398302672,1765515045688,-2603.08674986,0.0002,14]
[398302673,1765515045707,-1288.34390071,0.0002,2]
[398302674,1765515045727,-2917.56997264,0.0002,7]
[398302675,1765515045743,-495.07279734,0.0002,10]
[398302676,1765515045762,-525.65614606,0.0002,7]
[398302677,1765515045781,-1039.90810545,0.0002,2]
[398302678,1765515045800,-2849.77569837,0.0002,2]
[398302679,1765515045818,-579.71,0.0002,2]
[398302680,1765515045837,-3877.54380715,0.0002,5]
[398302681,1765515045855,-205.4,0.0002,2]
[398302682,1765515045870,-1507.37602839,0.0002,2]
[398302683,1765515045884,-1420.49902,0.0002,2]
[398302684,1765515045902,-186.2,0.0002,2]
[398302685,1765515045916,-160.40175867,0.0002,20]
[398302686,1765515045931,-150.0,0.0002,2]
[398302687,1765515045944,-150.0,0.0002,2]
[398302688,1765515045959,-193.53603709,0.0002,2]
[398302689,1765515045979,-151.0,0.00020002,2]
[398302690,1765515045994,-152.733017,0.00020002,2]
[398302691,1765515046014,-152.733017,0.00020002,2]
[398302692,1765515046028,-152.733017,0.00020002,2]
[398302693,1765515046042,-152.733017,0.00020002,2]
[398302694,1765515046056,-1000.0,0.00020003,2]
[398302695,1765515046071,-151.0,0.00020003,2]
[398302696,1765515046085,-151.0,0.00020004,2]
[398302697,1765515046100,-153.550901,0.00020004,2]
[398302698,1765515046114,-1000.0,0.00020013,2]
[398302699,1765515046129,-1000.0,0.00020014,2]
[398302700,1765515046144,-150.0,0.00020014,2]
[398302701,1765515046158,-150.0,0.00020017,2]
[398302702,1765515046173,-1000.0,0.00020019,2]
[398302703,1765515046187,-205.713957,0.00020019,2]
[398302704,1765515046202,-205.713957,0.00020019,2]
[398302706,1765515046217,-3651.519771,0.00020019,2]
[398302707,1765515046231,-205.713957,0.00020019,2]
[398302708,1765515046246,-3651.519771,0.00020019,2]
[398302709,1765515046259,-205.713957,0.00020019,2]
[398302710,1765515046273,-3651.519771,0.00020019,2]
[398302711,1765515046289,-3651.519771,0.00020019,2]
[398302712,1765515046303,-1000.0,0.0002002,2]
[398302713,1765515046318,-151.000002,0.0002002,2]
[398302714,1765515046333,-151.0,0.0002002,2]
[398302715,1765515046348,-1000.0,0.00020025,2]
[398302716,1765515046364,-1000.0,0.00020028,2]
[398302717,1765515046378,-1000.0,0.00020031,2]
[398302718,1765515046394,-1000.0,0.00020031,2]
[398302719,1765515046408,-151.0,0.00020031,2]
[398302720,1765515046423,-663.404819,0.00020031,2]
[398302721,1765515046437,-663.404819,0.00020031,2]
[398302722,1765515046452,-663.404819,0.00020031,2]
[398302723,1765515046467,-663.404819,0.00020031,2]
[398302724,1765515046481,-151.0,0.00020031,2]
[398302725,1765515046496,-1000.0,0.00020032,2]
[398302726,1765515046510,-1509.0,0.00020033,2]
[398302727,1765515046525,-163.90206064,0.00020033,2]
[398302728,1765515046540,-1000.0,0.00020036,2]
[398302729,1765515046555,-150.0,0.0002004,2]
[398302730,1765515046570,-1000.0,0.00020042,2]
[398302731,1765515046585,-156.729657,0.00020042,2]
[398302732,1765515046599,-1000.0,0.00020045,2]
[398302733,1765515046614,-151.0,0.00020045,2]
[398302734,1765515046634,-1000.0,0.00020051,2]
[398302735,1765515046649,-1000.0,0.00020053,2]
[398302736,1765515046664,-414.90866,0.00020054,2]
[398302737,1765515046683,-263.045368,0.00020054,2]
[398302738,1765515046697,-414.90866,0.00020054,2]
[398302739,1765515046711,-414.90866,0.00020054,2]
[398302740,1765515046725,-414.90866,0.00020054,2]
[398302741,1765515046739,-150.0,0.00020057,2]
[398302742,1765515046754,-150.0,0.0002006,2]
[398302743,1765515046768,-150.0,0.00020061,2]
[398302744,1765515046783,-150.0,0.00020062,2]
[398302745,1765515046797,-150.0,0.00020063,2]
[398302746,1765515046811,-1000.0,0.00020065,2]
[398302747,1765515046825,-150.0,0.00020065,2]
[398302748,1765515046840,-1000.0,0.00020066,2]
[398302749,1765515046854,-1000.0,0.00020068,2]
[398302750,1765515046869,-150.0,0.00020071,2]
[398302751,1765515046883,-1000.0,0.00020072,2]
[398302752,1765515046897,-150.0,0.00020072,2]
[398302753,1765515046912,-1000.0,0.00020077,2]
[398302754,1765515046926,-300.0,0.00020077,3]
[398302755,1765515046940,-300.0,0.00020077,3]
[398302756,1765515046954,-300.0,0.00020077,3]
[398302757,1765515046968,-267.624472,0.00020077,3]
[398302758,1765515046982,-151.0,0.00020077,2]
[398302759,1765515046996,-1000.0,0.00020077,2]
[398302760,1765515047011,-165.05773,0.00020077,2]
[398302761,1765515047025,-1000.0,0.00020078,2]
[398302762,1765515047040,-150.0,0.00020083,2]
[398302763,1765515047054,-1000.0,0.00020086,2]
[398302764,1765515047068,-1000.0,0.00020087,2]
[398302765,1765515047082,-150.0,0.00020087,2]
[398302766,1765515047098,-172.43757217,0.00020088,2]
[398302767,1765515048441,-628.28861067,0.00020088,2]
[398302768,1765515048464,-199.27381716,0.00020088,2]
[398302769,1765515048473,-150.0,0.00020093,2]
[398302770,1765515048483,-534.3257528,0.00020093,2]
[398302771,1765515048494,-465.6742472,0.00020093,2]
[398302772,1765515048504,-586.61996402,0.00020098,2]
[398302773,1765515048515,-413.38003598,0.00020098,2]
[398302774,1765515048525,-150.0,0.00020098,2]
[398302775,1765515048534,-842.72918836,0.00020102,2]
[398302776,1765515048544,-150.0,0.00020104,2]
[398302777,1765515048553,-912.91317439,0.00020105,2]
[398302778,1765515048743,-906.0,0.00018674,2]
[398302779,1765515048755,-398.522162,0.000194,2]
[398302780,1765515048764,-398.522162,0.000194,2]
[398302781,1765515048774,-398.522162,0.00019951,2]
[398302782,1765515048783,-398.522162,0.00020031,2]
[398302783,1765515048794,-398.522162,0.00020031,2]
[398302784,1765515048804,-87.08682561,0.00020105,2]
[398302785,1765515048813,-1000.0,0.00020108,2]
[398302786,1765515048822,-331.32269924,0.0002011,2]
[398302787,1765515048834,-668.67730076,0.0002011,2]
[398302788,1765515048843,-90.80378567,0.0002011,2]
[398302789,1765515048854,-68.47916664,0.0002011,2]
[398302790,1765515048864,-721.88221785,0.00020111,2]
[398302805,1765515306210,158.0,0.00020447,120]
[398302806,1765515307562,158.0,0.00021469,120]
[398302807,1765515308844,158.0,0.00022543,120]
[398302808,1765515310150,158.0,0.0002367,120]
[398302809,1765515311414,158.0,0.00024853,120]
[398302810,1765515606451,158.0,0.00020483,120]
[398302811,1765515608144,158.0,0.00021507,120]
[398302812,1765515609472,158.0,0.00022582,120]
[398302813,1765515610956,158.0,0.00023711,120]
[398302814,1765515979104,395.42,0.00013699,2]
[398302822,1765516231983,-250.0,0.00017,2]
[398302823,1765516231994,-294.0,0.00017,2]
[398302824,1765516232003,-327.0,0.00017511,2]
[398302826,1765516232126,-868.0,0.00017511,2]
[398302827,1765516232135,-166.72426543,0.00017588,2]
[398302828,1765516232147,-832.33893487,0.00017588,2]
[398302829,1765516232158,-195.9367997,0.00017588,2]
[398302830,1765516232169,-906.0,0.00017666,2]
[398302831,1765516232180,-503.95767699,0.00017734,7]
[398302841,1765516232413,-418.26636555,0.00017734,7]
[398302842,1765516232424,-1388.91954942,0.00017734,7]
[398302843,1765516232436,-688.85640804,0.00017734,7]
[398302844,1765516232445,-1132.74767699,0.00017734,7]
[398302845,1765516232463,-367.25232301,0.00017734,7]
[398302846,1765516232473,-1000.0,0.00017749,2]
[398302847,1765516232483,-212.28801392,0.00017749,2]
[398302848,1765516232497,-121.01161339,0.00017749,2]
[398302849,1765516232507,-1840.77370199,0.0001776,2]
[398302851,1765516238125,-2.22629801,0.0001776,2]
[398302852,1765516238135,-1843.0,0.00017844,2]
[398302853,1765516238145,-1195.0,0.00017936,2]
[398302854,1765516238155,-1843.0,0.00017953,2]
[398302855,1765516238165,-1843.0,0.00017987,2]
[398302856,1765516238175,-1843.0,0.00018151,2]
[398302857,1765516238185,-1843.0,0.00018281,2]
[398302858,1765516238195,-525.82403474,0.00018291,2]
[398302859,1765516238204,-1843.0,0.00018355,2]
[398302860,1765516238215,-302.36828836,0.00018379,2]
[398302861,1765516240157,-305.1300075,0.00018379,2]
[398302862,1765516240281,-508.28615974,0.00018379,2]
[398302863,1765516240296,-727.2155444,0.00018379,2]
[398302864,1765516240306,-421.89605465,0.00018423,2]
[398302865,1765516240510,-264.10394535,0.00018423,2]
[398302866,1765516240520,-906.0,0.00018436,2]
[398302867,1765516240531,-480.92749245,0.00018474,2]
[398302868,1765516240540,-1843.0,0.00018573,2]
[398302869,1765516240550,-150.9,0.00018696,2]
[398302870,1765516240559,-1843.0,0.00018713,2]
[398302871,1765516240569,-1843.0,0.00018725,2]
[398302872,1765516240579,-500.0,0.000188,2]
[398302873,1765516240588,-500.0,0.000188,2]
[398302874,1765516240599,-500.0,0.000188,2]
[398302875,1765516240609,-500.0,0.000188,2]
[398302876,1765516240619,-166.33501111,0.000188,2]
[398302877,1765516240628,-501.14762699,0.000188,2]
[398302878,1765516240638,-500.0,0.000188,2]
[398302879,1765516240648,-500.0,0.000188,2]
[398302880,1765516240658,-187.66877016,0.00018802,2]
[398302881,1765516240670,-498.33122984,0.00018802,2]
[398302882,1765516240680,-1843.0,0.0001881,2]
[398302883,1765516240690,-3000.0,0.0001883,7]
[398302884,1765516240700,-1500.0,0.0001883,7]
[398302885,1765516240710,-500.0,0.00018899,2]
[398302886,1765516240719,-500.0,0.00018899,2]
[398302887,1765516240729,-500.0,0.00018899,2]
[398302888,1765516240738,-1475.43,0.00018927,2]
[398302889,1765516240748,-1000.0,0.00018948,2]
[398302890,1765516240757,-200.0,0.00018988,2]
[398302891,1765516240767,-300.0,0.00019,2]
[398302892,1765516240777,-683.0,0.00019045,2]
[398302893,1765516240786,-150.0,0.0001908,2]
[398302894,1765516240795,-298.0,0.000191,2]
[398302895,1765516240804,-973.0,0.000191,2]
[398302896,1765516240815,-304.0,0.000191,2]
[398302897,1765516240824,-151.0,0.00019178,2]
[398302898,1765516240833,-1000.0,0.000192,2]
[398302899,1765516240842,-906.0,0.00019262,2]
[398302900,1765516240851,-1843.0,0.00019322,2]
[398302901,1765516240861,-1000.0,0.00019348,2]
[398302902,1765516240871,-1000.0,0.00019348,2]
[398302903,1765516240880,-503.45105508,0.00019348,2]
[398302904,1765516240889,-1000.0,0.00019348,2]
[398302905,1765516240898,-1000.0,0.00019348,2]
[398302906,1765516240908,-935.84817365,0.00019348,2]
[398302907,1765516240918,-1000.0,0.00019385,2]
[398302908,1765516240927,-1000.0,0.00019387,2]
[398302909,1765516240938,-906.0,0.00019387,2]
[398302910,1765516240948,-906.0,0.00019392,2]
[398302911,1765516240958,-1000.0,0.00019409,2]
[398302912,1765516240968,-1000.0,0.00019428,2]
[398302913,1765516240977,-1000.0,0.00019431,2]
[398302914,1765516240986,-1000.0,0.00019454,2]
[398302915,1765516240996,-1000.0,0.00019466,2]
[398302916,1765516241005,-1000.0,0.00019477,2]
[398302917,1765516241014,-686.0,0.00019518,2]
[398302918,1765516241024,-1000.0,0.00019554,2]
[398302919,1765516241033,-1000.0,0.00019557,2]
[398302920,1765516241042,-1000.0,0.00019617,2]
[398302921,1765516241051,-1000.0,0.00019647,2]
[398302922,1765516241061,-1000.0,0.00019654,2]
[398302923,1765516241071,-1000.0,0.00019658,2]
[398302924,1765516241081,-1000.0,0.00019694,2]
[398302925,1765516241091,-166.75029455,0.00019709,2]
[398302926,1765516241101,-156.587,0.00019726,2]
[398302927,1765516241110,-1151.11316978,0.00019896,2]
[398302928,1765516241120,-1500.0,0.00019896,2]
[398302929,1765516241129,-1500.0,0.00019896,2]
[398302930,1765516241137,-1500.0,0.00019896,2]
[398302931,1765516241147,-946.99934,0.0001991,2]
[398302932,1765516241156,-634.089,0.00019918,2]
[398302933,1765516241165,-3000.0,0.00019926,7]
[398302934,1765516241174,-1500.0,0.00019926,7]
[398302935,1765516241184,-500.0,0.00019946,2]
[398302936,1765516241193,-500.0,0.00019946,2]
[398302937,1765516241203,-1000.0,0.00019999,3]
[398302938,1765516241212,-150.0,0.0002,2]
[398302939,1765516241221,-1000.0,0.0002,2]
[398302940,1765516241231,-950.695,0.00020002,2]
[398302941,1765516241240,-151.90487074,0.00020033,2]
[398302942,1765516241250,-880.0,0.00020033,2]
[398302943,1765516241259,-150.0,0.00020033,2]
[398302944,1765516241268,-500.0,0.0002007,2]
[398302945,1765516241278,-1000.0,0.0002007,2]
[398302946,1765516241288,-1000.0,0.00020076,3]
[398302947,1765516241297,-1000.0,0.0002011,2]
[398302948,1765516241307,-278.11778215,0.00020111,2]
[398302949,1765516241316,-183.91956436,0.00020161,2]
[398302950,1765516241326,-880.0,0.0002017,2]
[398302951,1765516241335,-1000.0,0.0002017,2]
[398302952,1765516241344,-500.0,0.0002017,2]
[398302953,1765516241354,-395.42,0.00020187,2]
[398302954,1765516241363,-150.0,0.000202,2]
[398302955,1765516241373,-584.83861677,0.000202,2]
[398302956,1765516241382,-1245.67822313,0.000202,2]
[398302957,1765516241392,-162.380719,0.00020274,2]
[398302958,1765516241401,-880.0,0.00020307,2]
[398302959,1765516241411,-1000.0,0.00020369,2]
[398302960,1765516241421,-898.24404616,0.0002041,30]
[398302961,1765516241430,-245.63,0.00020422,2]
[398302962,1765516241440,-500.0,0.00020443,2]
[398302963,1765516241449,-190.91242687,0.00020443,2]
[398302964,1765516241458,-174.42741756,0.00020443,2]
[398302965,1765516241467,-212.07592024,0.00020443,2]
[398302966,1765516241477,-2000.0,0.00020444,2]
[398302967,1765516241487,-1657.06342756,0.00020444,2]
[398302968,1765516241499,-2000.0,0.00020444,2]
[398302969,1765516241509,-880.0,0.00020444,2]
[398302970,1765516241519,-200.0,0.00020447,2]
[398302971,1765516241531,-191.21,0.00020548,2]
[398302972,1765516241541,-21418.24,0.00020548,2]
[398302973,1765516241550,-880.0,0.00020581,2]
[398302974,1765516241560,-150.0,0.00020698,5]
[398302975,1765516241570,-880.0,0.00020718,2]
[398302976,1765516241580,-168.3888056,0.00020822,2]
[398302977,1765516241590,-753.4,0.00020846,2]
[398302978,1765516241599,-880.0,0.00020855,2]
[398302979,1765516241609,-946.99935,0.0002091,2]